lending/lending_fUSD_20260310
["ID","MTS","AMOUNT","RATE_DAILY","PERIOD"]
[408116354,1773155441544,-1822.85507045,0.00018264,2]
[408116355,1773155441553,-166.68,0.00018291,2]
[408116356,1773155441563,-8728.7513935,0.00018335,2]
[408116357,1773155441575,-1600.0,0.00018343,2]
[408116358,1773155441584,-6481.32924018,0.00018375,2]
[408116359,1773155441594,-5603.66620646,0.0001843,3]
[408116360,1773155441605,-510.0,0.00018465,3]
[408116361,1773155441614,-160.0,0.00018491,2]
[408116362,1773155441628,-1000.0,0.000185,2]
[408116363,1773155441638,-209.93,0.00018539,2]
[408116364,1773155441647,-3043.35879065,0.00018581,2]
[408116365,1773155441656,-325.0,0.00018609,2]
[408116366,1773155441665,-2000.0,0.00018644,2]
[408116367,1773155441674,-2000.0,0.00018644,2]
[408116368,1773155441684,-238.1,0.00018665,2]
[408116369,1773155441694,-500.0,0.00018685,7]
[408116370,1773155441703,-426.1590554,0.00018685,2]
[408116371,1773155441713,-1213.0,0.00018687,2]
[408116372,1773155441722,-922.0,0.00018687,2]
[408116373,1773155441731,-2461.0,0.00018699,2]
[408116374,1773155441743,-3750.0,0.00018699,2]
[408116375,1773155441759,-166.66,0.00018738,2]
[408116376,1773155441769,-6481.32924018,0.00018792,2]
[408116377,1773155441778,-1947.6476963,0.00018796,2]
[408116378,1773155441788,-1378.69,0.000188,2]
[408116379,1773155441797,-180.11276457,0.000188,2]
[408116380,1773155441806,-1755.11,0.00018856,2]
[408116381,1773155441815,-5000.0,0.00019,30]
[408116382,1773155441824,-21925.96350167,0.00019,2]
[408116383,1773155441833,-3654.69356423,0.00019,2]
[408116384,1773155441848,-10717.5,0.00019,2]
[408116385,1773155442325,-287.108,0.00019,2]
[408116387,1773155442337,-915.39786879,0.00019,2]
[408116388,1773155442349,-173.28072923,0.00019,2]
[408116389,1773155442359,-590.57450714,0.00019,2]
[408116390,1773155442371,-650.06830729,0.00019046,2]
[408116392,1773155442380,-1000.0,0.00019048,2]
[408116393,1773155442390,-2873.94885522,0.00019104,2]
[408116394,1773155442404,-169.40993543,0.00019104,2]
[408116395,1773155442414,-617.33,0.00019106,2]
[408116396,1773155442424,-1238.28,0.00019106,2]
[408116398,1773155442433,-168.0,0.00019137,2]
[408116401,1773155442443,-1525.9,0.00019177,2]
[408116404,1773155442452,-500.0,0.00019178,2]
[408116406,1773155442461,-500.0,0.00019178,2]
[408116408,1773155442471,-500.0,0.00019178,2]
[408116409,1773155442480,-500.0,0.00019178,2]
[408116411,1773155442490,-500.0,0.00019178,2]
[408116412,1773155442501,-403.08279724,0.00019178,2]
[408116413,1773155442515,-151.0,0.00019178,2]
[408116414,1773155442524,-151.0,0.00019178,2]
[408116415,1773155442534,-151.0,0.00019178,2]
[408116416,1773155442544,-151.0,0.00019178,2]
[408116417,1773155442555,-151.0,0.00019178,2]
[408116419,1773155442564,-206.310511,0.00019178,2]
[408116420,1773155442575,-151.0,0.00019178,2]
[408116421,1773155442585,-151.0,0.00019178,2]
[408116422,1773155442596,-151.0,0.00019178,2]
[408116423,1773155442605,-151.0,0.00019178,2]
[408116424,1773155442614,-151.0,0.00019178,2]
[408116425,1773155442627,-151.0,0.00019178,2]
[408116426,1773155442636,-151.0,0.00019178,2]
[408116427,1773155442647,-151.0,0.00019178,2]
[408116428,1773155442657,-151.0,0.00019178,2]
[408116429,1773155442667,-209.099778,0.00019178,2]
[408116430,1773155442677,-271.248904,0.00019178,2]
[408116431,1773155442687,-2495.819207,0.00019178,2]
[408116432,1773155442696,-2495.819207,0.00019178,2]
[408116433,1773155442706,-2495.819207,0.00019178,2]
[408116434,1773155442716,-1859.62945336,0.00019178,2]
[408116435,1773155442861,-636.18975364,0.00019178,2]
[408116436,1773155442873,-2495.819207,0.00019178,2]
[408116437,1773155442882,-2495.819207,0.00019178,2]
[408116438,1773155442891,-2495.819207,0.00019178,2]
[408116439,1773155442901,-2495.819207,0.00019178,2]
[408116440,1773155442910,-2495.819207,0.00019178,2]
[408116441,1773155442920,-2495.819207,0.00019178,2]
[408116442,1773155442930,-2495.819207,0.00019178,2]
[408116443,1773155442940,-2495.819207,0.00019178,2]
[408116444,1773155442950,-2495.819207,0.00019178,2]
[408116445,1773155442960,-2495.819207,0.00019178,2]
[408116446,1773155442970,-2495.819207,0.00019178,2]
[408116447,1773155442979,-2495.819207,0.00019178,2]
[408116448,1773155442988,-2495.819207,0.00019178,2]
[408116449,1773155442997,-2495.819207,0.00019178,2]
[408116450,1773155443007,-2495.819207,0.00019178,2]
[408116451,1773155443016,-2495.819203,0.00019178,2]
[408116452,1773155443028,-151.0,0.00019178,2]
[408116453,1773155443037,-253.575093,0.00019178,2]
[408116454,1773155443046,-151.0,0.00019178,2]
[408116455,1773155443056,-151.0,0.00019178,2]
[408116456,1773155443066,-151.0,0.00019178,2]
[408116457,1773155443076,-151.0,0.00019178,2]
[408116458,1773155443086,-151.0,0.00019178,2]
[408116459,1773155443096,-188.673291,0.00019178,2]
[408116460,1773155443105,-151.0,0.00019178,2]
[408116461,1773155443114,-151.0,0.00019178,2]
[408116462,1773155443128,-151.0,0.00019178,2]
[408116463,1773155443138,-151.0,0.00019178,2]
[408116464,1773155443147,-151.0,0.00019178,2]
[408116465,1773155443156,-151.0,0.00019178,2]
[408116466,1773155443166,-151.0,0.00019178,2]
[408116467,1773155443175,-151.0,0.00019178,2]
[408116468,1773155443184,-151.0,0.00019178,2]
[408116469,1773155443193,-151.0,0.00019178,2]
[408116470,1773155443203,-151.0,0.00019178,2]
[408116471,1773155443212,-190.676848,0.00019178,2]
[408116472,1773155443222,-151.0,0.00019178,2]
[408116473,1773155443231,-176.618865,0.00019178,2]
[408116474,1773155443240,-423.889488,0.00019178,2]
[408116475,1773155443249,-423.889488,0.00019178,2]
[408116477,1773155443259,-423.889488,0.00019178,2]
[408116478,1773155443269,-423.889488,0.00019178,2]
[408116479,1773155443278,-423.889488,0.00019178,2]
[408116480,1773155443288,-423.889488,0.00019178,2]
[408116481,1773155443298,-423.889488,0.00019178,2]
[408116483,1773155443309,-423.889488,0.00019178,2]
[408116484,1773155443318,-423.889488,0.00019178,2]
[408116485,1773155443327,-423.889488,0.00019178,2]
[408116486,1773155443336,-423.889488,0.00019178,2]
[408116487,1773155443345,-423.889488,0.00019178,2]
[408116488,1773155443354,-423.889488,0.00019178,2]
[408116489,1773155443364,-423.889488,0.00019178,2]
[408116490,1773155443375,-423.889488,0.00019178,2]
[408116491,1773155443385,-423.889488,0.00019178,2]
[408116492,1773155443394,-423.889488,0.00019178,2]
[408116493,1773155443403,-423.889488,0.00019178,2]
[408116494,1773155443411,-423.889488,0.00019178,2]
[408116495,1773155443420,-423.889488,0.00019178,2]
[408116496,1773155443430,-151.0,0.00019178,2]
[408116497,1773155443438,-151.0,0.00019178,2]
[408116498,1773155443447,-199.730346,0.00019178,2]
[408116499,1773155443456,-151.0,0.00019178,3]
[408116500,1773155443465,-151.0,0.00019178,3]
[408116501,1773155443474,-151.0,0.00019178,3]
[408116502,1773155443483,-151.0,0.00019178,3]
[408116503,1773155443494,-151.0,0.00019178,3]
[408116504,1773155443505,-151.0,0.00019178,3]
[408116505,1773155443514,-625.37,0.00019178,2]
[408116506,1773155443526,-675.08856897,0.00019192,2]
[408116507,1773155443537,-1500.0,0.00019192,2]
[408116508,1773155443550,-2000.0,0.000192,2]
[408116509,1773155443559,-6481.32924018,0.00019209,2]
[408116510,1773155443568,-150.0,0.00019284,2]
[408116511,1773155443579,-1342.0,0.00019284,2]
[408116512,1773155443588,-1042.0,0.00019284,2]
[408116513,1773155443598,-619.0,0.00019284,2]
[408116514,1773155443607,-168.0,0.00019313,2]
[408116515,1773155443617,-168.0,0.00019318,2]
[408116516,1773155443629,-374.88,0.00019322,2]
[408116517,1773155443639,-209.93,0.00019382,2]
[408116518,1773155443649,-2000.0,0.0001947,2]
[408116519,1773155443658,-155.0,0.00019524,2]
[408116520,1773155443668,-168.0,0.00019566,2]
[408116521,1773155443678,-418.10589065,0.00019573,2]
[408116522,1773155443688,-1000.0,0.00019596,2]
[408116523,1773155443698,-168.0,0.00019598,2]
[408116524,1773155443708,-6481.32924018,0.00019626,2]
[408116525,1773155443717,-327.60547688,0.00019626,2]
[408116526,1773155443727,-3043.35879065,0.00019626,2]
[408116527,1773155443736,-5384.05966044,0.00019626,2]
[408116528,1773155443746,-823.0,0.00019642,2]
[408116529,1773155443755,-168.0,0.00019664,2]
[408116530,1773155443764,-860.25915927,0.000197,2]
[408116531,1773155443774,-1600.0,0.000197,7]
[408116532,1773155443784,-6734.79697507,0.00019702,5]
[408116533,1773155443793,-832.96,0.00019711,2]
[408116534,1773155443802,-479.58,0.00019711,2]
[408116535,1773155443812,-218.0,0.00019712,2]
[408116536,1773155443821,-531.62135668,0.00019716,2]
[408116537,1773155443831,-500.0,0.00019723,2]
[408116538,1773155443842,-735.9,0.00019725,2]
[408116539,1773155443852,-735.9,0.00019725,2]
[408116540,1773155443863,-735.9,0.00019725,2]
[408116541,1773155443877,-735.9,0.00019725,2]
[408116542,1773155443886,-736.10325655,0.00019725,2]
[408116543,1773155443895,-1525.9,0.00019725,2]
[408116544,1773155443905,-1525.9,0.00019725,2]
[408116545,1773155443914,-1525.9,0.00019725,2]
[408116546,1773155443923,-1525.9,0.00019725,2]
[408116547,1773155443932,-1525.9,0.00019725,2]
[408116548,1773155443942,-1526.06208117,0.00019725,2]
[408116549,1773155443951,-2615.63918432,0.00019726,2]
[408116550,1773155443962,-2615.63918432,0.00019726,2]
[408116551,1773155443973,-2615.63918432,0.00019726,2]
[408116552,1773155443982,-2615.63918432,0.00019726,2]
[408116553,1773155443992,-2615.63918432,0.00019726,2]
[408116554,1773155444001,-2615.63918432,0.00019726,2]
[408116555,1773155444010,-2615.63918432,0.00019726,2]
[408116556,1773155444019,-2615.63918432,0.00019726,2]
[408116557,1773155444028,-2615.63918432,0.00019726,2]
[408116558,1773155444038,-174.359556,0.00019726,2]
[408116559,1773155444047,-174.359556,0.00019726,2]
[408116560,1773155444056,-3375.89561176,0.00019726,2]
[408116561,1773155444066,-3375.89561176,0.00019726,2]
[408116562,1773155444075,-3375.89561176,0.00019726,2]
[408116563,1773155444085,-3375.89561176,0.00019726,2]
[408116564,1773155444095,-3375.89561176,0.00019726,2]
[408116565,1773155444104,-3375.89561176,0.00019726,2]
[408116566,1773155444113,-3375.89561176,0.00019726,2]
[408116567,1773155444126,-3375.89561176,0.00019726,2]
[408116568,1773155444135,-3375.89561176,0.00019726,2]
[408116569,1773155444144,-532.10283391,0.00019726,2]
[408116570,1773155444153,-500.0,0.00019726,2]
[408116571,1773155444162,-500.0,0.00019726,2]
[408116572,1773155444172,-375.99894408,0.00019726,2]
[408116573,1773155444181,-500.0,0.00019726,2]
[408116574,1773155444190,-500.0,0.00019726,2]
[408116575,1773155444199,-324.65040131,0.00019726,2]
[408116576,1773155444208,-556.06666719,0.00019726,2]
[408116577,1773155444217,-500.0,0.00019726,2]
[408116578,1773155444226,-173.07931678,0.00019726,2]
[408116579,1773155444236,-522.63929415,0.00019726,2]
[408116580,1773155444244,-500.0,0.00019726,2]
[408116581,1773155444254,-500.0,0.00019726,2]
[408116582,1773155444263,-500.0,0.00019726,2]
[408116583,1773155444272,-500.0,0.00019726,2]
[408116584,1773155444280,-647.68899775,0.00019726,2]
[408116585,1773155444289,-500.0,0.00019726,2]
[408116586,1773155444298,-332.29896344,0.00019726,2]
[408116587,1773155444307,-500.0,0.00019726,2]
[408116588,1773155444317,-591.65898126,0.00019726,2]
[408116589,1773155444326,-500.0,0.00019726,2]
[408116590,1773155444335,-500.0,0.00019726,2]
[408116591,1773155444344,-565.84023316,0.00019726,2]
[408116592,1773155444353,-500.0,0.00019726,2]
[408116593,1773155444362,-500.0,0.00019726,2]
[408116594,1773155444372,-154.36159515,0.00019726,2]
[408116595,1773155444381,-500.0,0.00019726,2]
[408116596,1773155444390,-557.11270417,0.00019726,2]
[408116597,1773155444399,-527.69061553,0.00019726,2]
[408116598,1773155444408,-524.97612515,0.00019726,2]
[408116599,1773155444417,-536.8828247,0.00019726,2]
[408116600,1773155444427,-500.0,0.00019726,2]
[408116601,1773155444435,-570.19906637,0.00019726,2]
[408116602,1773155444444,-521.57123177,0.00019726,2]
[408116603,1773155444453,-437.12536968,0.00019726,2]
[408116604,1773155444463,-500.0,0.00019726,2]
[408116605,1773155444472,-500.0,0.00019726,2]
[408116606,1773155444481,-500.0,0.00019726,2]
[408116607,1773155444490,-500.0,0.00019726,2]
[408116608,1773155444499,-500.0,0.00019726,2]
[408116609,1773155444512,-500.0,0.00019726,2]
[408116610,1773155444522,-500.0,0.00019726,2]
[408116611,1773155444532,-538.92928253,0.00019726,2]
[408116612,1773155444541,-500.0,0.00019726,2]
[408116613,1773155444550,-500.0,0.00019726,2]
[408116614,1773155444559,-500.0,0.00019726,2]
[408116615,1773155444568,-500.0,0.00019726,2]
[408116616,1773155444579,-500.0,0.00019726,2]
[408116617,1773155444587,-500.0,0.00019726,2]
[408116618,1773155444596,-500.0,0.00019726,2]
[408116619,1773155444605,-608.97749151,0.00019726,2]
[408116620,1773155444613,-520.22261433,0.00019726,2]
[408116621,1773155444622,-500.0,0.00019726,2]
[408116622,1773155444631,-500.0,0.00019726,2]
[408116623,1773155444640,-500.0,0.00019726,2]
[408116624,1773155444649,-500.0,0.00019726,2]
[408116625,1773155444658,-226.41793897,0.00019726,2]
[408116626,1773155444666,-500.0,0.00019726,2]
[408116627,1773155444675,-535.19700973,0.00019726,2]
[408116628,1773155444684,-500.0,0.00019726,2]
[408116629,1773155444693,-500.0,0.00019726,2]
[408116630,1773155444702,-500.0,0.00019726,2]
[408116631,1773155444711,-500.0,0.00019726,2]
[408116632,1773155444721,-500.0,0.00019726,2]
[408116633,1773155444731,-504.74521022,0.00019726,2]
[408116634,1773155444740,-500.0,0.00019726,2]
[408116635,1773155444749,-314.72302203,0.00019726,2]
[408116636,1773155444759,-500.0,0.00019726,2]
[408116637,1773155444768,-500.0,0.00019726,2]
[408116638,1773155444778,-500.0,0.00019726,2]
[408116639,1773155444787,-500.0,0.00019726,2]
[408116640,1773155444796,-500.0,0.00019726,2]
[408116641,1773155444805,-500.0,0.00019726,2]
[408116642,1773155444815,-500.0,0.00019726,2]
[408116643,1773155444824,-500.0,0.00019726,2]
[408116644,1773155444833,-500.0,0.00019726,2]
[408116645,1773155444842,-500.0,0.00019726,2]
[408116646,1773155444852,-500.0,0.00019726,2]
[408116647,1773155444861,-500.0,0.00019726,2]
[408116648,1773155444871,-500.0,0.00019726,2]
[408116649,1773155444880,-200.0,0.00019726,2]
[408116650,1773155444889,-500.0,0.00019726,2]
[408116651,1773155444898,-500.0,0.00019726,2]
[408116652,1773155444908,-500.0,0.00019726,2]
[408116653,1773155444917,-500.0,0.00019726,2]
[408116654,1773155444926,-500.0,0.00019726,2]
[408116655,1773155444935,-500.0,0.00019726,2]
[408116656,1773155444944,-500.0,0.00019726,2]
[408116657,1773155444953,-172.97841758,0.00019726,2]
[408116658,1773155444963,-500.0,0.00019726,2]
[408116659,1773155444972,-589.23896043,0.00019726,2]
[408116660,1773155444981,-500.0,0.00019726,2]
[408116661,1773155444989,-500.0,0.00019726,2]
[408116662,1773155444999,-500.0,0.00019726,2]
[408116663,1773155445008,-500.0,0.00019726,2]
[408116664,1773155445143,-500.0,0.00019726,2]
[408116665,1773155445153,-500.0,0.00019726,2]
[408116666,1773155445163,-500.0,0.00019726,2]
[408116667,1773155445173,-500.0,0.00019726,2]
[408116668,1773155445182,-332.43729473,0.00019726,2]
[408116669,1773155445191,-540.62357477,0.00019726,2]
[408116670,1773155445201,-500.0,0.00019726,2]
[408116671,1773155445210,-500.0,0.00019726,2]
[408116672,1773155445219,-500.0,0.00019726,2]
[408116673,1773155445229,-500.0,0.00019726,2]
[408116674,1773155445238,-500.0,0.00019726,2]
[408116675,1773155445247,-610.71716563,0.00019726,2]
[408116676,1773155445256,-500.0,0.00019726,2]
[408116677,1773155445265,-500.0,0.00019726,2]
[408116678,1773155445278,-330.0,0.00019726,2]
[408116679,1773155445288,-500.0,0.00019726,2]
[408116680,1773155445297,-500.0,0.00019726,2]
[408116681,1773155445306,-508.56438849,0.00019726,2]
[408116682,1773155445316,-500.0,0.00019726,2]
[408116684,1773155445325,-500.0,0.00019726,2]
[408116685,1773155445334,-500.0,0.00019726,2]
[408116687,1773155445343,-617.23840053,0.00019726,2]
[408116689,1773155445352,-500.0,0.00019726,2]
[408116691,1773155445361,-500.0,0.00019726,2]
[408116693,1773155445370,-500.0,0.00019726,2]
[408116695,1773155445379,-500.0,0.00019726,2]
[408116697,1773155445388,-500.0,0.00019726,2]
[408116699,1773155445397,-531.88262089,0.00019726,2]
[408116701,1773155445407,-500.0,0.00019726,2]
[408116702,1773155445416,-500.0,0.00019726,2]
[408116703,1773155445427,-500.0,0.00019726,2]
[408116704,1773155445437,-500.0,0.00019726,2]
[408116705,1773155445446,-500.0,0.00019726,2]
[408116706,1773155445456,-500.0,0.00019726,2]
[408116707,1773155445468,-500.0,0.00019726,2]
[408116708,1773155445478,-500.0,0.00019726,2]
[408116709,1773155445489,-593.45803717,0.00019726,2]
[408116710,1773155445502,-500.0,0.00019726,2]
[408116711,1773155445512,-500.0,0.00019726,2]
[408116712,1773155445521,-500.0,0.00019726,2]
[408116713,1773155445532,-413.54964161,0.00019726,2]
[408116714,1773155445543,-500.0,0.00019726,2]
[408116715,1773155445553,-500.0,0.00019726,2]
[408116716,1773155445562,-500.0,0.00019726,2]
[408116717,1773155445571,-500.0,0.00019726,2]
[408116718,1773155445580,-500.0,0.00019726,2]
[408116719,1773155445590,-500.0,0.00019726,2]
[408116720,1773155445599,-500.0,0.00019726,2]
[408116721,1773155445609,-500.0,0.00019726,2]
[408116722,1773155445618,-500.0,0.00019726,2]
[408116723,1773155445630,-500.0,0.00019726,2]
[408116724,1773155445639,-500.0,0.00019726,2]
[408116725,1773155445648,-500.0,0.00019726,2]
[408116726,1773155445657,-546.90008229,0.00019726,2]
[408116727,1773155445667,-500.0,0.00019726,2]
[408116728,1773155445677,-500.0,0.00019726,2]
[408116729,1773155445686,-500.0,0.00019726,2]
[408116730,1773155445695,-500.0,0.00019726,2]
[408116731,1773155445706,-500.0,0.00019726,2]
[408116732,1773155445716,-500.0,0.00019726,2]
[408116733,1773155445726,-637.4889145,0.00019726,2]
[408116734,1773155445737,-500.0,0.00019726,2]
[408116735,1773155445746,-500.0,0.00019726,2]
[408116736,1773155445756,-491.86384808,0.00019726,2]
[408116738,1773155445765,-500.0,0.00019726,2]
[408116739,1773155445775,-500.0,0.00019726,2]
[408116740,1773155445786,-500.0,0.00019726,2]
[408116741,1773155445795,-500.0,0.00019726,2]
[408116742,1773155445804,-500.0,0.00019726,2]
[408116743,1773155445815,-500.0,0.00019726,2]
[408116744,1773155445825,-500.0,0.00019726,2]
[408116745,1773155445835,-500.0,0.00019726,2]
[408116746,1773155445846,-500.0,0.00019726,2]
[408116747,1773155445858,-500.0,0.00019726,2]
[408116748,1773155445869,-500.0,0.00019726,2]
[408116749,1773155445881,-500.0,0.00019726,2]
[408116750,1773155445891,-500.0,0.00019726,2]
[408116751,1773155445900,-500.0,0.00019726,2]
[408116752,1773155445909,-500.0,0.00019726,2]
[408116753,1773155445919,-500.0,0.00019726,2]
[408116754,1773155445929,-575.86603595,0.00019726,2]
[408116755,1773155445939,-500.0,0.00019726,2]
[408116756,1773155445950,-500.0,0.00019726,2]
[408116757,1773155445959,-500.0,0.00019726,2]
[408116758,1773155445969,-500.0,0.00019726,2]
[408116759,1773155445979,-500.0,0.00019726,2]
[408116760,1773155445989,-500.0,0.00019726,2]
[408116761,1773155445998,-500.0,0.00019726,2]
[408116762,1773155446008,-500.0,0.00019726,2]
[408116763,1773155446017,-558.16426843,0.00019726,2]
[408116764,1773155446027,-500.0,0.00019726,2]
[408116765,1773155446036,-500.0,0.00019726,2]
[408116766,1773155446047,-566.35545779,0.00019726,2]
[408116767,1773155446056,-500.0,0.00019726,2]
[408116768,1773155446066,-500.0,0.00019726,2]
[408116769,1773155446075,-500.0,0.00019726,2]
[408116770,1773155446084,-500.0,0.00019726,2]
[408116771,1773155446094,-500.0,0.00019726,2]
[408116772,1773155446103,-500.0,0.00019726,2]
[408116773,1773155446112,-500.0,0.00019726,2]
[408116774,1773155446123,-500.0,0.00019726,2]
[408116775,1773155446132,-500.0,0.00019726,2]
[408116776,1773155446142,-500.0,0.00019726,2]
[408116777,1773155446151,-554.59791151,0.00019726,2]
[408116778,1773155446160,-500.0,0.00019726,2]
[408116779,1773155446170,-500.0,0.00019726,2]
[408116780,1773155446179,-500.0,0.00019726,2]
[408116781,1773155446188,-500.0,0.00019726,2]
[408116782,1773155446197,-500.0,0.00019726,2]
[408116783,1773155446206,-500.0,0.00019726,2]
[408116784,1773155446216,-500.0,0.00019726,2]
[408116785,1773155446225,-500.0,0.00019726,2]
[408116786,1773155446234,-208.8228611,0.00019726,2]
[408116787,1773155446243,-500.0,0.00019726,2]
[408116788,1773155446252,-500.0,0.00019726,2]
[408116789,1773155446261,-500.0,0.00019726,2]
[408116790,1773155446271,-500.0,0.00019726,2]
[408116791,1773155446281,-500.0,0.00019726,2]
[408116792,1773155446290,-500.0,0.00019726,2]
[408116793,1773155446299,-500.0,0.00019726,2]
[408116794,1773155446309,-500.0,0.00019726,2]
[408116795,1773155446318,-500.0,0.00019726,2]
[408116796,1773155446327,-500.0,0.00019726,2]
[408116797,1773155446336,-500.0,0.00019726,2]
[408116798,1773155446346,-500.0,0.00019726,2]
[408116799,1773155446355,-500.0,0.00019726,2]
[408116800,1773155446364,-500.0,0.00019726,2]
[408116801,1773155446374,-530.73944436,0.00019726,2]
[408116802,1773155446384,-500.0,0.00019726,2]
[408116803,1773155446393,-500.0,0.00019726,2]
[408116804,1773155446402,-500.0,0.00019726,2]
[408116805,1773155446411,-500.0,0.00019726,2]
[408116806,1773155446421,-500.0,0.00019726,2]
[408116807,1773155446430,-500.0,0.00019726,2]
[408116808,1773155446440,-500.0,0.00019726,2]
[408116809,1773155446449,-500.0,0.00019726,2]
[408116810,1773155446458,-500.0,0.00019726,2]
[408116811,1773155446467,-500.0,0.00019726,2]
[408116812,1773155446477,-500.0,0.00019726,2]
[408116813,1773155446486,-500.0,0.00019726,2]
[408116814,1773155446497,-500.0,0.00019726,2]
[408116815,1773155446507,-500.0,0.00019726,2]
[408116816,1773155446516,-524.54331366,0.00019726,2]
[408116817,1773155446527,-1247.29,0.00019726,2]
[408116818,1773155446536,-1247.29,0.00019726,2]
[408116819,1773155446546,-1247.29,0.00019726,2]
[408116820,1773155446556,-500.0,0.00019726,2]
[408116821,1773155446566,-500.0,0.00019726,2]
[408116822,1773155446579,-1247.29,0.00019726,2]
[408116823,1773155446588,-500.0,0.00019726,2]
[408116824,1773155446598,-1247.29,0.00019726,2]
[408116825,1773155446607,-500.0,0.00019726,2]
[408116826,1773155446617,-1247.29,0.00019726,2]
[408116827,1773155446627,-500.0,0.00019726,2]
[408116828,1773155446637,-1247.29,0.00019726,2]
[408116829,1773155446646,-500.0,0.00019726,2]
[408116830,1773155446656,-1247.29,0.00019726,2]
[408116831,1773155446665,-500.0,0.00019726,2]
[408116832,1773155446674,-1247.29,0.00019726,2]
[408116833,1773155446684,-205.95577994,0.00019726,2]
[408116834,1773155446693,-1247.29,0.00019726,2]
[408116835,1773155446702,-1247.29,0.00019726,2]
[408116836,1773155446712,-1247.29,0.00019726,2]
[408116837,1773155446721,-1247.29,0.00019726,2]
[408116838,1773155446731,-500.0,0.00019726,2]
[408116839,1773155446740,-1247.29,0.00019726,2]
[408116840,1773155446750,-534.90937491,0.00019726,2]
[408116841,1773155446759,-1247.29,0.00019726,2]
[408116842,1773155446768,-1247.29,0.00019726,2]
[408116843,1773155446777,-1247.29,0.00019726,2]
[408116844,1773155446786,-1247.29,0.00019726,2]
[408116845,1773155446795,-1247.29,0.00019726,2]
[408116846,1773155446805,-1247.29,0.00019726,2]
[408116847,1773155446814,-1247.29,0.00019726,2]
[408116848,1773155446823,-1247.29,0.00019726,2]
[408116849,1773155446832,-1247.29,0.00019726,2]
[408116850,1773155446840,-1247.35449859,0.00019726,2]
[408116851,1773155446850,-500.0,0.00019726,2]
[408116852,1773155446859,-500.0,0.00019726,2]
[408116853,1773155446869,-500.0,0.00019726,2]
[408116854,1773155446878,-556.30894223,0.00019726,2]
[408116855,1773155446888,-524.91566919,0.00019726,2]
[408116856,1773155446897,-500.0,0.00019726,2]
[408116857,1773155446906,-500.0,0.00019726,2]
[408116858,1773155446915,-500.0,0.00019726,2]
[408116859,1773155446924,-500.0,0.00019726,2]
[408116860,1773155446934,-500.0,0.00019726,2]
[408116861,1773155446943,-629.02799622,0.00019726,2]
[408116862,1773155446953,-500.0,0.00019726,2]
[408116863,1773155446963,-500.0,0.00019726,2]
[408116864,1773155446972,-500.0,0.00019726,2]
[408116865,1773155446982,-500.0,0.00019726,2]
[408116866,1773155446991,-500.0,0.00019726,2]
[408116867,1773155447000,-500.0,0.00019726,2]
[408116868,1773155447009,-500.0,0.00019726,2]
[408116869,1773155447018,-500.0,0.00019726,2]
[408116870,1773155447027,-500.0,0.00019726,2]
[408116871,1773155447037,-500.0,0.00019726,2]
[408116872,1773155447046,-504.0,0.00019726,2]
[408116873,1773155447056,-500.0,0.00019726,2]
[408116874,1773155447065,-500.0,0.00019726,2]
[408116875,1773155447074,-500.0,0.00019726,2]
[408116876,1773155447084,-500.0,0.00019726,2]